fUST/lending_fUST_20241112
["ID","MTS","AMOUNT","RATE_DAILY","PERIOD"]
[341998348,1731354645662,-500.0,0.00021917,2]
[341998349,1731354645672,-500.46972516,0.00021917,2]
[341998350,1731354645682,-500.0,0.00021917,2]
[341998351,1731354645692,-500.0,0.00021917,2]
[341998352,1731354645702,-500.0,0.00021917,2]
[341998353,1731354645713,-247.20839365,0.00021917,2]
[341998354,1731354645722,-500.0,0.00021917,2]
[341998355,1731354645732,-500.0,0.00021917,2]
[341998356,1731354645742,-500.0,0.00021917,2]
[341998357,1731354645751,-500.0,0.00021917,2]
[341998358,1731354645761,-596.41259861,0.00021917,2]
[341998359,1731354645771,-500.0,0.00021917,2]
[341998360,1731354645782,-500.0,0.00021917,2]
[341998361,1731354645793,-500.0,0.00021917,2]
[341998363,1731354645804,-500.0,0.00021917,2]
[341998364,1731354645815,-500.0,0.00021917,2]
[341998365,1731354645825,-587.07887487,0.00021917,2]
[341998366,1731354645836,-500.0,0.00021917,2]
[341998367,1731354645846,-500.0,0.00021917,2]
[341998368,1731354645855,-500.0,0.00021917,2]
[341998369,1731354645865,-467.12245185,0.00021917,2]
[341998370,1731354645874,-1000.0,0.00021917,2]
[341998371,1731354645883,-500.0,0.00021917,2]
[341998372,1731354645892,-500.0,0.00021917,2]
[341998374,1731354645901,-500.0,0.00021917,2]
[341998376,1731354645912,-330.73587527,0.00021917,2]
[341998378,1731354645921,-500.0,0.00021917,2]
[341998380,1731354645930,-500.0,0.00021917,2]
[341998382,1731354645940,-500.0,0.00021917,2]
[341998383,1731354645950,-500.0,0.00021917,2]
[341998386,1731354645960,-500.0,0.00021917,2]
[341998388,1731354645970,-151.0,0.00021917,2]
[341998389,1731354645979,-502.19036425,0.00021917,2]
[341998390,1731354645989,-500.0,0.00021917,2]
[341998391,1731354645998,-500.0,0.00021917,2]
[341998392,1731354646008,-500.0,0.00021917,2]
[341998393,1731354646018,-500.0,0.00021917,2]
[341998395,1731354646028,-500.0,0.00021917,2]
[341998399,1731354646038,-417.24953391,0.00021917,2]
[341998403,1731354646048,-503.33035149,0.00021917,2]
[341998404,1731354646057,-500.0,0.00021917,2]
[341998405,1731354646067,-534.17846839,0.00021917,2]
[341998406,1731354646077,-500.0,0.00021917,2]
[341998407,1731354646089,-500.0,0.00021917,2]
[341998408,1731354646098,-151.0,0.00021917,2]
[341998409,1731354646108,-151.0,0.00021917,2]
[341998410,1731354646118,-500.0,0.00021917,2]
[341998411,1731354646128,-500.0,0.00021917,2]
[341998412,1731354646138,-500.0,0.00021917,2]
[341998413,1731354646148,-500.0,0.00021917,2]
[341998415,1731354646158,-500.0,0.00021917,2]
[341998416,1731354646168,-500.0,0.00021917,2]
[341998418,1731354646177,-850.32,0.00021917,2]
[341998420,1731354646187,-500.0,0.00021917,2]
[341998422,1731354646198,-500.0,0.00021917,2]
[341998423,1731354646208,-500.0,0.00021917,2]
[341998424,1731354646218,-500.0,0.00021917,2]
[341998425,1731354646228,-500.0,0.00021917,2]
[341998426,1731354646238,-500.0,0.00021917,2]
[341998427,1731354646249,-500.0,0.00021917,2]
[341998428,1731354646260,-503.08540763,0.00021917,2]
[341998429,1731354646270,-500.0,0.00021917,2]
[341998430,1731354646280,-151.0,0.00021917,2]
[341998431,1731354646290,-151.0,0.00021917,2]
[341998433,1731354646301,-151.0,0.00021917,2]
[341998434,1731354646311,-500.0,0.00021917,2]
[341998435,1731354646321,-500.0,0.00021917,2]
[341998436,1731354646331,-500.0,0.00021917,2]
[341998437,1731354646345,-500.0,0.00021917,2]
[341998438,1731354646356,-500.0,0.00021917,2]
[341998439,1731354646365,-500.0,0.00021917,2]
[341998440,1731354646375,-295.19609716,0.00021917,2]
[341998441,1731354646385,-500.0,0.00021917,2]
[341998442,1731354646396,-500.0,0.00021917,2]
[341998443,1731354646407,-151.0,0.00021917,2]
[341998444,1731354646417,-500.0,0.00021917,2]
[341998445,1731354646427,-500.0,0.00021917,2]
[341998447,1731354646436,-500.0,0.00021917,2]
[341998448,1731354646447,-500.0,0.00021917,2]
[341998449,1731354646457,-370.72286588,0.00021917,2]
[341998450,1731354646467,-500.0,0.00021917,2]
[341998451,1731354646476,-500.0,0.00021917,2]
[341998452,1731354646486,-500.0,0.00021917,2]
[341998453,1731354646496,-500.0,0.00021917,2]
[341998454,1731354646506,-506.14731943,0.00021917,2]
[341998455,1731354646516,-383.96071774,0.00021917,2]
[341998456,1731354646527,-500.0,0.00021917,2]
[341998457,1731354646537,-500.0,0.00021917,2]
[341998458,1731354646548,-500.0,0.00021917,2]
[341998459,1731354646558,-500.0,0.00021917,2]
[341998460,1731354646568,-500.0,0.00021917,2]
[341998462,1731354646578,-500.0,0.00021917,2]
[341998464,1731354646592,-500.0,0.00021917,2]
[341998466,1731354646602,-500.0,0.00021917,2]
[341998468,1731354646613,-500.0,0.00021917,2]
[341998470,1731354646624,-629.09,0.00021917,2]
[341998472,1731354646634,-500.0,0.00021917,2]
[341998474,1731354646644,-500.0,0.00021917,2]
[341998476,1731354646654,-500.0,0.00021917,2]
[341998478,1731354646665,-500.0,0.00021917,2]
[341998479,1731354646674,-500.0,0.00021917,2]
[341998481,1731354646686,-544.74868512,0.00021917,2]
[341998483,1731354646696,-500.0,0.00021917,2]
[341998485,1731354646706,-500.0,0.00021917,2]
[341998487,1731354646715,-734.42,0.00021917,2]
[341998489,1731354646726,-500.0,0.00021917,2]
[341998491,1731354646736,-500.0,0.00021917,2]
[341998493,1731354646746,-2336.0,0.00021917,2]
[341998495,1731354646757,-151.0,0.00021917,2]
[341998497,1731354646767,-151.0,0.00021917,2]
[341998499,1731354646778,-500.0,0.00021917,2]
[341998501,1731354646789,-737.05,0.00021917,2]
[341998503,1731354646798,-151.0,0.00021917,2]
[341998505,1731354646808,-151.0,0.00021917,2]
[341998507,1731354646819,-151.0,0.00021917,2]
[341998509,1731354646830,-500.0,0.00021917,2]
[341998511,1731354646844,-500.0,0.00021917,2]
[341998513,1731354646854,-500.0,0.00021917,2]
[341998515,1731354646864,-524.04469701,0.00021917,2]
[341998517,1731354646875,-500.0,0.00021917,2]
[341998519,1731354646885,-500.0,0.00021917,2]
[341998521,1731354646895,-500.0,0.00021917,2]
[341998523,1731354646905,-500.0,0.00021917,2]
[341998525,1731354646915,-500.0,0.00021917,2]
[341998527,1731354646926,-500.0,0.00021917,2]
[341998529,1731354646937,-500.0,0.00021917,2]
[341998531,1731354646947,-500.0,0.00021917,2]
[341998533,1731354646957,-500.0,0.00021917,2]
[341998535,1731354646966,-500.0,0.00021917,2]
[341998537,1731354646977,-975.27,0.00021917,2]
[341998539,1731354646988,-500.0,0.00021917,2]
[341998541,1731354646998,-500.0,0.00021917,2]
[341998543,1731354647009,-517.44834281,0.00021917,2]
[341998545,1731354647019,-500.0,0.00021917,2]
[341998547,1731354647029,-1178.21,0.00021917,2]
[341998549,1731354647039,-500.0,0.00021917,2]
[341998551,1731354647048,-500.0,0.00021917,2]
[341998553,1731354647057,-500.0,0.00021917,2]
[341998554,1731354647067,-500.0,0.00021917,2]
[341998557,1731354647077,-2212.12,0.00021917,2]
[341998558,1731354647090,-500.0,0.00021917,2]
[341998560,1731354647099,-500.0,0.00021917,2]
[341998562,1731354647109,-500.0,0.00021917,2]
[341998564,1731354647119,-500.0,0.00021917,2]
[341998566,1731354647129,-500.0,0.00021917,2]
[341998568,1731354647152,-215.59501037,0.00021917,2]
[341998571,1731354647175,-500.0,0.00021917,2]
[341998573,1731354647198,-500.0,0.00021917,2]
[341998574,1731354647220,-151.0,0.00021917,2]
[341998576,1731354647246,-153.416537,0.00021917,2]
[341998578,1731354647270,-500.0,0.00021917,2]
[341998580,1731354647292,-500.0,0.00021917,2]
[341998582,1731354647312,-506.81952075,0.00021917,2]
[341998596,1731354647429,-151.0,0.00021917,2]
[341998598,1731354647439,-151.0,0.00021917,2]
[341998600,1731354647448,-500.0,0.00021917,2]
[341998602,1731354647458,-151.0,0.00021917,2]
[341998604,1731354647467,-151.0,0.00021917,2]
[341998606,1731354647476,-151.0,0.00021917,2]
[341998608,1731354647486,-500.0,0.00021917,2]
[341998609,1731354647495,-151.0,0.00021917,2]
[341998611,1731354647504,-151.0,0.00021917,2]
[341998613,1731354647513,-151.0,0.00021917,2]
[341998615,1731354647522,-218.954737,0.00021917,2]
[341998617,1731354647531,-500.0,0.00021917,2]
[341998619,1731354647543,-500.0,0.00021917,2]
[341998621,1731354647552,-500.0,0.00021917,2]
[341998623,1731354647562,-500.0,0.00021917,2]
[341998625,1731354647570,-1776.39,0.00021917,2]
[341998627,1731354647580,-500.0,0.00021917,2]
[341998629,1731354647591,-500.31487748,0.00021917,2]
[341998631,1731354647601,-500.0,0.00021917,2]
[341998633,1731354647610,-500.0,0.00021917,2]
[341998635,1731354647619,-1308.37,0.00021917,2]
[341998637,1731354647628,-500.0,0.00021917,2]
[341998639,1731354647637,-500.0,0.00021917,2]
[341998641,1731354647646,-417.576436,0.00021917,2]
[341998643,1731354647655,-417.576436,0.00021917,2]
[341998645,1731354647664,-500.0,0.00021917,2]
[341998647,1731354647674,-855.59,0.00021917,2]
[341998648,1731354647683,-417.576436,0.00021917,2]
[341998650,1731354647692,-500.0,0.00021917,2]
[341998652,1731354647701,-417.576436,0.00021917,2]
[341998654,1731354647710,-500.0,0.00021917,2]
[341998656,1731354647720,-500.0,0.00021917,2]
[341998658,1731354647729,-500.0,0.00021917,2]
[341998660,1731354647738,-151.0,0.00021917,2]
[341998662,1731354647747,-500.0,0.00021917,2]
[341998664,1731354647756,-500.0,0.00021917,2]
[341998666,1731354647766,-500.0,0.00021917,2]
[341998668,1731354647775,-500.0,0.00021917,2]
[341998670,1731354647784,-500.0,0.00021917,2]
[341998672,1731354647794,-500.0,0.00021917,2]
[341998674,1731354647803,-500.0,0.00021917,2]
[341998676,1731354647811,-500.0,0.00021917,2]
[341998678,1731354647820,-500.0,0.00021917,2]
[341998680,1731354647829,-565.627699,0.00021917,2]
[341998682,1731354647840,-500.0,0.00021917,2]
[341998684,1731354647849,-500.0,0.00021917,2]
[341998686,1731354647857,-151.0,0.00021917,2]
[341998688,1731354647866,-471.31583747,0.00021917,2]
[341998690,1731354647876,-500.0,0.00021917,2]
[341998692,1731354647885,-151.0,0.00021917,2]
[341998694,1731354647895,-500.0,0.00021917,2]
[341998696,1731354647905,-626.69842654,0.00021917,2]
[341998698,1731354647915,-500.0,0.00021917,2]
[341998700,1731354647924,-500.0,0.00021917,2]
[341998702,1731354647934,-500.0,0.00021917,2]
[341998704,1731354647944,-500.0,0.00021917,2]
[341998706,1731354647953,-502.08930359,0.00021917,2]
[341998708,1731354647963,-500.0,0.00021917,2]
[341998710,1731354647972,-500.0,0.00021917,2]
[341998711,1731354647981,-639.32637579,0.00021917,2]
[341998713,1731354647990,-500.0,0.00021917,2]
[341998715,1731354647999,-337.88592,0.00021917,2]
[341998717,1731354648009,-512.7457207,0.00021917,2]
[341998719,1731354648018,-500.0,0.00021917,2]
[341998721,1731354648028,-500.0,0.00021917,2]
[341998723,1731354648037,-559.82,0.00021917,2]
[341998725,1731354648046,-337.88592,0.00021917,2]
[341998727,1731354648057,-500.0,0.00021917,2]
[341998729,1731354648066,-500.0,0.00021917,2]
[341998731,1731354648076,-500.0,0.00021917,2]
[341998733,1731354648087,-500.0,0.00021917,2]
[341998735,1731354648097,-500.0,0.00021917,2]
[341998737,1731354648106,-500.0,0.00021917,2]
[341998739,1731354648115,-503.58376675,0.00021917,2]
[341998741,1731354648125,-500.0,0.00021917,2]
[341998743,1731354648134,-503.09917963,0.00021917,2]
[341998745,1731354648143,-153.340352,0.00021917,2]
[341998747,1731354648152,-500.0,0.00021917,2]
[341998749,1731354648162,-500.0,0.00021917,2]
[341998751,1731354648171,-508.80888844,0.00021917,2]
[341998753,1731354648180,-500.0,0.00021917,2]
[341998755,1731354648190,-500.0,0.00021917,2]
[341998757,1731354648200,-151.0,0.00021917,2]
[341998759,1731354648210,-522.40581873,0.00021917,2]
[341998761,1731354648219,-500.0,0.00021917,2]
[341998763,1731354648229,-232.96466132,0.00021917,2]
[341998765,1731354648239,-500.0,0.00021917,2]
[341998766,1731354648249,-151.0,0.00021917,2]
[341998768,1731354648258,-1806.68,0.00021917,2]
[341998770,1731354648268,-500.0,0.00021917,2]
[341998772,1731354648277,-3820.69,0.00021917,2]
[341998774,1731354648287,-500.0,0.00021917,2]
[341998776,1731354648295,-151.0,0.00021917,2]
[341998778,1731354648305,-500.0,0.00021917,2]
[341998780,1731354648314,-500.0,0.00021917,2]
[341998782,1731354648326,-500.0,0.00021917,2]
[341998784,1731354648337,-500.0,0.00021917,2]
[341998786,1731354648346,-500.0,0.00021917,2]
[341998788,1731354648356,-500.0,0.00021917,2]
[341998790,1731354648366,-180.5900324,0.00021917,2]
[341998792,1731354648375,-1418.79,0.00021917,2]
[341998794,1731354648385,-500.0,0.00021917,2]
[341998796,1731354648394,-873.04,0.00021917,2]
[341998798,1731354648404,-151.0,0.00021917,2]
[341998800,1731354648413,-500.0,0.00021917,2]
[341998802,1731354648422,-500.0,0.00021917,2]
[341998803,1731354648431,-500.0,0.00021917,2]
[341998805,1731354648441,-500.0,0.00021917,2]
[341998807,1731354648451,-500.0,0.00021917,2]
[341998809,1731354648460,-500.0,0.00021917,2]
[341998811,1731354648469,-500.0,0.00021917,2]
[341998813,1731354648478,-515.6673184,0.00021917,2]
[341998815,1731354648487,-627.68711973,0.00021917,2]
[341998816,1731354648496,-615.61428252,0.00021917,2]
[341998817,1731354648506,-967.78,0.00021917,2]
[341998818,1731354648516,-672.49,0.00021917,2]
[341998819,1731354648525,-502.27,0.00021917,2]
[341998820,1731354648534,-200.0,0.00021917,2]
[341998821,1731354648544,-151.0,0.00021917,2]
[341998822,1731354648554,-500.0,0.00021917,2]
[341998823,1731354648563,-158.77007764,0.00021917,2]
[341998824,1731354648572,-500.0,0.00021917,2]
[341998825,1731354648585,-502.61058034,0.00021917,2]
[341998826,1731354648594,-500.0,0.00021917,2]
[341998827,1731354648603,-500.0,0.00021917,2]
[341998828,1731354648613,-500.0,0.00021917,2]
[341998829,1731354648624,-500.0,0.00021917,2]
[341998830,1731354648635,-500.0,0.00021917,2]
[341998831,1731354648644,-1428.11,0.00021917,2]
[341998832,1731354648653,-500.0,0.00021917,2]
[341998833,1731354648663,-500.0,0.00021917,2]
[341998834,1731354648672,-500.0,0.00021917,2]
[341998835,1731354648681,-500.0,0.00021917,2]
[341998836,1731354648699,-500.0,0.00021917,2]
[341998837,1731354648720,-500.0,0.00021917,2]
[341998838,1731354648741,-500.0,0.00021917,2]
[341998839,1731354648761,-500.0,0.00021917,2]
[341998840,1731354648782,-1971.29,0.00021917,2]
[341998841,1731354648803,-500.0,0.00021917,2]
[341998842,1731354648824,-500.0,0.00021917,2]
[341998843,1731354648845,-500.0,0.00021917,2]
[341998844,1731354648866,-500.0,0.00021917,2]
[341998845,1731354648877,-1383.81,0.00021917,2]
[341998846,1731354648886,-346.85431865,0.00021917,2]
[341998847,1731354648896,-500.0,0.00021917,2]
[341998848,1731354648905,-392.9885911,0.00021917,2]
[341998849,1731354648915,-445.55855818,0.00021917,2]
[341998850,1731354648924,-500.0,0.00021917,2]
[341998851,1731354648936,-805.27,0.00021917,2]
[341998852,1731354648951,-500.0,0.00021917,2]
[341998853,1731354648967,-500.0,0.00021917,2]
[341998855,1731354648981,-500.0,0.00021917,2]
[341998857,1731354648996,-500.0,0.00021917,2]
[341998859,1731354649015,-500.0,0.00021917,2]
[341998861,1731354649032,-535.24,0.00021917,2]
[341998862,1731354649049,-502.44953685,0.00021917,2]
[341998863,1731354649067,-151.0,0.00021917,2]
[341998864,1731354649085,-500.0,0.00021917,2]
[341998865,1731354649102,-500.0,0.00021917,2]
[341998866,1731354649112,-500.0,0.00021917,2]
[341998867,1731354649121,-500.0,0.00021917,2]
[341998868,1731354649131,-223.426154,0.00021917,2]
[341998869,1731354649140,-4469.95,0.00021917,2]
[341998870,1731354649150,-500.0,0.00021917,2]
[341998871,1731354649160,-500.0,0.00021917,2]
[341998872,1731354649170,-500.0,0.00021917,2]
[341998873,1731354649179,-500.0,0.00021917,2]
[341998874,1731354649189,-500.0,0.00021917,2]
[341998875,1731354649198,-500.0,0.00021917,2]
[341998876,1731354649207,-151.0,0.00021917,2]
[341998877,1731354649216,-338.19836687,0.00021917,2]
[341998878,1731354649226,-500.0,0.00021917,2]
[341998879,1731354649235,-500.0,0.00021917,2]
[341998880,1731354649244,-502.30462674,0.00021917,2]
[341998881,1731354649253,-782.79,0.00021917,2]
[341998882,1731354649262,-174.37570847,0.00021917,2]
[341998883,1731354649271,-500.0,0.00021917,2]
[341998884,1731354649280,-500.0,0.00021917,2]
[341998885,1731354649289,-526.87227088,0.00021917,2]
[341998886,1731354649298,-500.0,0.00021917,2]
[341998887,1731354649308,-500.0,0.00021917,2]
[341998888,1731354649317,-728.776609,0.00021917,2]
[341998889,1731354649327,-500.0,0.00021917,2]
[341998890,1731354649338,-728.776609,0.00021917,2]
[341998891,1731354649348,-500.0,0.00021917,2]
[341998892,1731354649357,-151.0,0.00021917,2]
[341998893,1731354649367,-500.0,0.00021917,2]
[341998894,1731354649376,-500.0,0.00021917,2]
[341998895,1731354649386,-500.0,0.00021917,2]
[341998896,1731354649396,-322.73707119,0.00021917,2]
[341998897,1731354649406,-640.88,0.00021917,2]
[341998898,1731354649415,-500.0,0.00021917,2]
[341998899,1731354649424,-500.0,0.00021917,2]
[341998900,1731354649434,-2033.37,0.00021917,2]
[341998901,1731354649443,-500.0,0.00021917,2]
[341998902,1731354649453,-151.0,0.00021917,2]
[341998903,1731354649462,-500.0,0.00021917,2]
[341998904,1731354649471,-500.0,0.00021917,2]
[341998905,1731354649480,-573.65072768,0.00021917,2]
[341998906,1731354649490,-500.0,0.00021917,2]
[341998907,1731354649499,-500.0,0.00021917,2]
[341998908,1731354649509,-500.0,0.00021917,2]
[341998909,1731354649518,-500.0,0.00021917,2]
[341998910,1731354649527,-2471.29,0.00021917,2]
[341998911,1731354649537,-167.542415,0.00021917,2]
[341998912,1731354649550,-169.82668604,0.00021917,2]
[341998913,1731354649559,-167.542415,0.00021917,2]
[341998914,1731354649569,-503.92029388,0.00021917,2]
[341998915,1731354649578,-357.46060731,0.00021917,2]
[341998916,1731354649589,-500.0,0.00021917,2]
[341998917,1731354649598,-500.0,0.00021917,2]
[341998918,1731354649607,-500.0,0.00021917,2]
[341998919,1731354649618,-1870.43,0.00021917,2]
[341998920,1731354649627,-500.0,0.00021917,2]
[341998921,1731354649637,-500.0,0.00021917,2]
[341998922,1731354649647,-500.0,0.00021917,2]
[341998923,1731354649656,-500.0,0.00021917,2]
[341998924,1731354649666,-500.0,0.00021917,2]
[341998925,1731354649675,-349.66560353,0.00021917,2]
[341998926,1731354649684,-500.0,0.00021917,2]
[341998927,1731354649693,-391.4469924,0.00021917,2]
[341998928,1731354649703,-500.0,0.00021917,2]
[341998929,1731354649712,-4871.87,0.00021917,2]
[341998930,1731354649722,-500.0,0.00021917,2]
[341998931,1731354649731,-500.0,0.00021917,2]
[341998932,1731354649741,-500.0,0.00021917,2]
[341998933,1731354649750,-500.0,0.00021917,2]
[341998934,1731354649759,-5719.47,0.00021917,2]
[341998935,1731354649769,-500.0,0.00021917,2]
[341998936,1731354649778,-500.0,0.00021917,2]
[341998937,1731354649787,-500.0,0.00021917,2]
[341998938,1731354649797,-500.0,0.00021917,2]
[341998939,1731354649806,-1269.27,0.00021917,2]
[341998940,1731354649816,-500.0,0.00021917,2]
[341998941,1731354649826,-500.0,0.00021917,2]
[341998942,1731354649835,-500.0,0.00021917,2]
[341998943,1731354649850,-500.0,0.00021917,2]
[341998944,1731354649859,-500.0,0.00021917,2]
[341998945,1731354649868,-500.0,0.00021917,2]
[341998946,1731354649878,-313.72340794,0.00021917,2]
[341998947,1731354649888,-1029.23,0.00021917,2]
[341998948,1731354649897,-500.0,0.00021917,2]
[341998949,1731354649907,-610.20060915,0.00021917,2]
[341998950,1731354649916,-500.0,0.00021917,2]
[341998951,1731354649926,-766.44,0.00021917,2]
[341998952,1731354649936,-500.0,0.00021917,2]
[341998953,1731354649946,-500.0,0.00021917,2]
[341998954,1731354649955,-328.25846637,0.00021917,2]
[341998955,1731354649964,-500.0,0.00021917,2]
[341998956,1731354649973,-500.0,0.00021917,2]
[341998957,1731354649983,-500.0,0.00021917,2]
[341998958,1731354649991,-500.0,0.00021917,2]
[341998959,1731354650001,-500.0,0.00021917,2]
[341998960,1731354650010,-500.0,0.00021917,2]
[341998961,1731354650019,-500.0,0.00021917,2]
[341998962,1731354650029,-500.0,0.00021917,2]
[341998963,1731354650038,-500.0,0.00021917,2]
[341998964,1731354650150,-500.0,0.00021917,2]
[341998965,1731354650160,-1431.52,0.00021917,2]
[341998966,1731354650168,-500.0,0.00021917,2]
[341998967,1731354650177,-571.79,0.00021917,2]
[341998968,1731354650187,-500.0,0.00021917,2]
[341998969,1731354650196,-500.0,0.00021917,2]
[341998970,1731354650205,-500.0,0.00021917,2]
[341998971,1731354650214,-500.0,0.00021917,2]
[341998972,1731354650223,-314.13,0.00021917,2]
[341998973,1731354650232,-19293.04,0.00021917,2]
[341998974,1731354650241,-540.39,0.00021917,2]
[341998975,1731354650250,-365.35954323,0.00021917,2]
[341998976,1731354650259,-506.90575082,0.00021917,2]
[341998977,1731354650268,-500.0,0.00021917,2]
[341998978,1731354650277,-500.50454196,0.00021917,2]
[341998979,1731354650287,-632.34,0.00021917,2]
[341998980,1731354650296,-500.0,0.00021917,2]
[341998981,1731354650305,-500.0,0.00021917,2]
[341998982,1731354650314,-930.61,0.00021917,2]
[341998983,1731354650323,-500.0,0.00021917,2]
[341998984,1731354650331,-780.71,0.00021917,2]
[341998985,1731354650342,-500.0,0.00021917,2]
[341998986,1731354650351,-500.0,0.00021917,2]
[341998987,1731354650360,-166.666666,0.00021918,2]
[341998988,1731354650369,-848.693549,0.00021962,2]
[341998989,1731354650378,-161.52161353,0.00021973,2]
[341998990,1731354650387,-494.66936675,0.00021973,2]
[341998991,1731354650395,-500.0,0.00021973,2]
[341998992,1731354650404,-245.19350941,0.00021973,2]
[341998993,1731354650414,-504.21690364,0.00021973,2]
[341998994,1731354650423,-505.32134963,0.00021973,2]
[341998995,1731354650432,-500.0,0.00021973,2]
[341998996,1731354650441,-500.0,0.00021973,2]
[341998997,1731354650451,-500.0,0.00021973,2]
[341998998,1731354650460,-160.38598261,0.00021973,2]
[341998999,1731354650470,-500.0,0.00021973,2]
[341999000,1731354650479,-500.0,0.00021973,2]
[341999001,1731354650488,-500.0,0.00021973,2]
[341999002,1731354650497,-346.9160012,0.00021973,2]
[341999003,1731354650506,-500.0,0.00021973,2]
[341999004,1731354650515,-500.0,0.00021973,2]
[341999005,1731354650525,-500.0,0.00021973,2]
[341999006,1731354650534,-500.0,0.00021973,2]
[341999007,1731354650545,-500.0,0.00021973,2]
[341999008,1731354650554,-500.0,0.00021973,2]
[341999009,1731354650563,-1513.0845675,0.00022,2]
[341999010,1731354650572,-178796.38568702,0.00022,2]
[341999011,1731354650732,-31073.50485185,0.00022,2]
[341999012,1731354650744,-1296.40929055,0.00022,2]
[341999013,1731354650755,-1431.58591391,0.00022,2]
[341999014,1731354650965,-3452.8,0.00022,2]
[341999015,1731354658613,9999.999999,0.0002,2]
[341999016,1731354661068,169.579516,0.00020773,2]
[341999017,1731354989070,1169.27083333,0.00020845,2]
[341999019,1731355026172,231.897486,0.00020462,2]
[341999020,1731355166557,160.5887857,0.00013973,2]
[341999021,1731355300370,1169.27083333,0.00020845,2]
[341999022,1731355305894,13433.3436708,0.00020476,2]
[341999023,1731355333324,1837.303733,0.00020476,2]
[341999024,1731355611358,1169.27083333,0.00020845,2]
[341999130,1731355835449,-1169.27083333,0.00020845,2]
[341999132,1731355835458,-162.53135728,0.00021373,2]
[341999133,1731355835467,-1000.0,0.0002138,2]
[341999134,1731355835476,-162.53135726,0.00021465,2]
[341999136,1731355835485,-298.44,0.0002147,3]
[341999137,1731355835494,-547.14,0.0002147,3]
[341999138,1731355835507,-273.57,0.0002147,3]
[341999139,1731355835515,-820.73,0.0002147,3]
[341999140,1731355835524,-300.0,0.00021472,2]
[341999141,1731355835533,-300.0,0.00021472,2]
[341999142,1731355835542,-502.92068442,0.00021473,2]
[341999143,1731355835551,-416.25194691,0.00021473,2]
[341999144,1731355835560,-500.0,0.00021473,2]
[341999145,1731355835569,-500.0,0.00021473,2]
[341999146,1731355835578,-500.0,0.00021479,2]
[341999147,1731355835588,-182.63109109,0.00021479,2]
[341999148,1731355835597,-501.43489021,0.0002148,2]
[341999149,1731355835605,-117426.10476538,0.0002148,2]
[341999189,1731355838682,-15724.20573,0.0002148,2]
[341999759,1731355844018,-96849.68950462,0.0002148,2]
[341999761,1731355844028,-152.33679743,0.00021556,2]
[341999763,1731355844037,-162.53135726,0.00021556,2]
[341999765,1731355844046,-152.33679743,0.00021642,2]
[341999767,1731355844056,-186.80625,0.00021656,2]
[341999770,1731355844065,-5764.0,0.00021679,2]
[341999772,1731355844075,-1495.72391697,0.00021705,2]
[341999775,1731355844084,-152.33679743,0.00021728,2]
[341999777,1731355844094,-150.112233,0.000218,3]
[341999779,1731355844103,-152.33679743,0.00021814,2]
[341999781,1731355844112,-42058.78149243,0.000219,2]